bitfinex-derivatives/quotes_ETHF0:USTF0_20230403
["timestamp","ask_amount","ask_price","bid_price","bid_amount"]
[1680545736561,0.26446161,1799.8,1799.6,1.86896712]
[1680545736857,0.58154413,1799.9,1799.6,1.86896712]
[1680545737358,4.89534413,1800.0,1799.8,1.0]
[1680545737547,1.106,1800.0,1799.8,1.0]
[1680545737750,1.106,1800.0,1799.9,3.2078]
[1680545738257,1.68754413,1800.0,1799.7,4.07676712]
[1680545739262,1.68754413,1800.0,1799.7,0.86896712]
[1680545739859,1.68754413,1800.0,1799.7,4.07676712]
[1680545740059,1.106,1800.0,1799.7,4.07676712]
[1680545740260,0.58154413,1800.1,1799.8,1.11]
[1680545740457,0.58154413,1800.1,1799.8,2.11]
[1680545740657,0.58154413,1800.1,1799.8,1.11]
[1680545740864,0.58154413,1800.1,1799.9,3.2078]
[1680545742557,0.58154413,1800.1,1799.8,1.11]
[1680545742754,0.58154413,1800.0,1799.8,1.11]
[1680545743363,1.45375931,1800.1,1799.8,1.11]
[1680545743667,0.58154413,1800.1,1799.8,1.11]
[1680545743869,2.45375931,1800.1,1799.8,1.11]
[1680545744369,1.45375931,1800.1,1799.8,1.11]
[1680545744564,1.45375931,1800.1,1799.8,4.3178]
[1680545744861,0.58154413,1800.1,1799.8,4.3178]
[1680545745053,0.58154413,1800.0,1799.8,1.11]
[1680545745260,2.45375931,1800.1,1799.8,1.11]
[1680545745659,0.58154413,1800.0,1799.8,1.11]
[1680545746460,1.69154413,1799.9,1799.6,1.43686994]
[1680545746770,1.0,1799.8,1799.6,0.86896712]
[1680545747860,2.69154413,1799.9,1799.6,0.86896712]
[1680545749554,1.69154413,1799.9,1799.6,0.86896712]
[1680545749862,1.45375931,1800.0,1799.6,6.18676712]
[1680545750163,0.58154413,1800.0,1799.6,5.18676712]
[1680545750363,0.58154413,1800.0,1799.7,0.86896712]
[1680545750865,0.58154413,1800.0,1799.8,3.2078]
[1680545751472,0.23471062,1799.9,1799.8,3.2078]
[1680545751660,0.23471062,1799.9,1799.8,4.3178]
[1680545751861,0.23471062,1799.9,1799.8,5.18676712]
[1680545752069,0.23471062,1799.9,1799.8,1.11]
[1680545752263,0.58154413,1800.1,1799.8,1.97896712]
[1680545752461,0.58154413,1800.1,1799.9,3.2078]
[1680545754669,1.45375931,1800.1,1799.9,3.2078]
[1680545754969,2.45375931,1800.0,1799.7,0.86896712]
[1680545755169,3.2078,1799.9,1799.7,0.86896712]
[1680545755362,1.0,1799.8,1799.7,0.86896712]
[1680545756162,5.89934413,1799.9,1799.6,0.86896712]
[1680545756367,5.89934413,1799.9,1799.7,0.86896712]
[1680545757875,4.89934413,1799.9,1799.7,0.86896712]
[1680545758769,5.77155931,1799.9,1799.7,0.86896712]
[1680545759563,1.58154413,1799.8,1799.7,0.86896712]
[1680545759772,1.87221518,1799.8,1799.6,0.86896712]
[1680545760068,3.79004162,1799.7,1799.5,1.97896712]
[1680545762076,0.58224162,1799.7,1799.6,0.86896712]
[1680545762573,7.29901518,1799.7,1799.4,0.86896712]
[1680545762769,4.90006851,1799.5,1799.4,0.86896712]
[1680545762968,4.90006851,1799.5,1799.3,0.86896712]
[1680545763276,1.106,1799.4,1799.3,0.86896712]
[1680545763469,2.106,1799.4,1799.2,0.86896712]
[1680545764272,1.106,1799.4,1799.2,0.86896712]
[1680545764471,1.106,1799.4,1799.3,0.86896712]
[1680545764678,0.58226851,1799.5,1799.3,0.86896712]
[1680545765078,1.58226851,1799.7,1799.3,2.92757049]
[1680545765271,1.58226851,1799.7,1799.5,0.87059276]
[1680545765478,1.69226851,1799.6,1799.4,0.87059276]
[1680545765680,1.69226851,1799.6,1799.3,0.87059276]
[1680545765681,0.58226851,1799.5,1799.3,0.87059276]
[1680545765978,1.0,1799.5,1799.3,0.87059276]
[1680545766700,0.51257401,1799.4,1799.3,0.87059276]
[1680545768199,2.20484252,1799.4,1799.1,0.87059276]
[1680545768398,3.2078,1799.2,1799.1,0.87059276]
[1680545768601,1.0,1799.3,1799.1,1.98059276]
[1680545768903,0.51257401,1799.4,1799.2,0.87059276]
[1680545769498,0.51257401,1799.4,1799.1,1.98059276]
[1680545769999,0.51257401,1799.4,1799.3,1.11]
[1680545770194,3.2078,1799.6,1799.3,1.11]
[1680545770398,3.2078,1799.6,1799.3,6.18839276]
[1680545770598,0.58226851,1799.7,1799.3,1.98059276]
[1680545771306,0.58226851,1799.7,1799.3,2.98059276]
[1680545771501,0.58226851,1799.7,1799.3,1.98059276]
[1680545771701,0.58226851,1799.7,1799.4,0.87059276]
[1680545772705,0.58226851,1799.7,1799.3,2.98059276]
[1680545772900,6.77228369,1799.8,1799.4,0.87059276]
[1680545773095,5.90006851,1799.8,1799.4,0.87059276]
[1680545773303,6.77228369,1799.8,1799.4,0.87059276]
[1680545773500,0.58226851,1799.7,1799.3,1.98059276]
[1680545773695,4.3138,1799.6,1799.3,0.87059276]
[1680545775199,1.11,1799.4,1799.2,0.87059276]
[1680545775904,4.90006851,1799.6,1799.2,4.07839276]
[1680545776212,0.58226851,1799.7,1799.3,1.98059276]
[1680545776715,0.58226851,1799.7,1799.3,5.18839276]
[1680545776900,0.58226851,1799.7,1799.3,1.98059276]
[1680545777303,0.58226851,1799.7,1799.3,5.18839276]
[1680545777506,0.58226851,1799.7,1799.3,1.98059276]
[1680545777701,0.58226851,1799.7,1799.3,5.18839276]
[1680545778407,6.77228369,1799.8,1799.3,5.18839276]
[1680545778714,0.58226851,1799.7,1799.3,1.98059276]
[1680545778903,1.11,1799.6,1799.3,0.87059276]
[1680545779110,1.0,1799.5,1799.3,0.87059276]
[1680545779308,1.11,1799.6,1799.3,0.87059276]
[1680545780402,0.58226851,1799.7,1799.3,1.98059276]
[1680545780610,6.77228369,1799.8,1799.3,1.98059276]
[1680545780805,0.58226851,1799.7,1799.3,1.98059276]
[1680545781511,0.51459788,1799.6,1799.3,1.98059276]
[1680545781712,0.58226851,1799.7,1799.3,1.98059276]
[1680545782005,0.58226851,1799.7,1799.3,0.87059276]
[1680545782006,1.11,1799.6,1799.3,0.87059276]
[1680545784109,0.58226851,1799.7,1799.4,9.236]
[1680545784314,0.58226851,1800.0,1799.6,6.58801645]
[1680545784518,0.58226851,1800.1,1799.9,1.11]
[1680545784709,0.58226851,1800.2,1800.0,3.2078]
[1680545784909,0.58226851,1800.3,1800.0,3.2078]
[1680545785521,0.87221518,1800.4,1800.2,3.2078]
[1680545785522,1.45448369,1800.4,1800.2,3.2078]
[1680545785811,1.45448369,1800.4,1800.3,3.2078]
[1680545786209,0.58226851,1800.4,1800.3,3.2078]
[1680545787211,4.04686932,1800.5,1800.3,3.2078]
[1680545788010,2.17465414,1800.5,1800.3,3.2078]
[1680545788212,0.58226851,1800.4,1800.0,4.3118]
[1680545788414,1.0,1800.3,1800.0,4.3118]
[1680545788713,1.06391814,1800.3,1800.0,4.3118]
[1680545789613,1.106,1800.2,1800.0,3.2078]
[1680545789812,1.0,1800.1,1800.0,3.2078]
[1680545790518,1.0,1800.1,1799.8,1.11]
[1680545790826,4.2078,1800.1,1799.8,1.11]
[1680545791415,5.90006851,1800.1,1799.6,1.109]
[1680545791614,4.3178,1799.7,1799.4,0.86877044]
[1680545791820,1.11,1799.5,1799.2,2.02898689]
[1680545792010,1.11,1799.5,1799.1,4.07857044]
[1680545792513,1.11,1799.5,1799.2,0.86877044]
[1680545793323,1.11,1799.6,1799.2,0.86877044]
[1680545794216,3.2078,1799.7,1799.3,6.18057044]
[1680545794512,1.11,1799.8,1799.3,6.18057044]
[1680545794717,1.11,1799.8,1799.3,5.18057044]
[1680545794919,1.11,1799.8,1799.3,1.97277044]
[1680545795118,1.11,1799.8,1799.3,5.18057044]
[1680545795119,3.2078,1799.7,1799.3,5.18057044]
[1680545795313,3.2078,1799.7,1799.3,1.97277044]
[1680545796623,0.41491353,1799.6,1799.3,1.97277044]
[1680545797018,3.2078,1799.7,1799.3,1.97277044]
[1680545797324,4.3138,1799.7,1799.3,0.86877044]
[1680545799125,1.106,1799.7,1799.3,4.07657044]
[1680545799626,4.3138,1799.7,1799.3,0.86877044]
[1680545799826,4.3138,1799.7,1799.2,1.97877044]
[1680545800221,4.89606851,1799.7,1799.2,1.11]
[1680545800730,4.89606851,1799.7,1799.2,1.97877044]
[1680545801124,4.89606851,1799.7,1799.2,1.11]
[1680545801726,4.3178,1799.5,1799.1,0.87077044]
[1680545801931,1.0,1799.4,1799.1,0.002]
[1680545802232,1.11,1799.3,1799.1,0.002]
[1680545804330,1.111,1799.3,1799.1,0.002]
[1680545804834,1.10493056,1799.3,1799.1,0.002]
[1680545810323,4.3188,1799.2,1799.1,0.002]
[1680545810524,1.0,1799.1,1798.7,0.86877044]
[1680545810733,4.3168,1798.8,1798.6,0.86877044]
[1680545811031,1.0,1798.7,1798.5,0.86877044]
[1680545811241,4.3168,1798.8,1798.5,0.86877044]
[1680545811737,1.12465176,1798.7,1798.6,0.86877044]
[1680545812041,1.111,1799.2,1798.6,3.27121645]
[1680545812337,1.111,1799.2,1798.7,5.18754307]
[1680545812528,4.3188,1799.2,1798.8,0.86874307]
[1680545812731,4.3188,1799.2,1798.7,1.97974307]
[1680545812929,5.3188,1799.2,1798.7,1.97974307]
[1680545813223,5.3188,1799.2,1798.7,5.18754307]
[1680545813431,4.3188,1799.2,1798.7,1.97974307]
[1680545813632,4.3188,1799.2,1798.7,5.18754307]
[1680545814231,4.3188,1799.2,1798.8,0.86874307]
[1680545814937,5.3188,1799.2,1798.8,0.86874307]
[1680545815128,4.3188,1799.2,1798.8,0.86874307]
[1680545815531,4.3188,1799.2,1798.7,0.86874307]
[1680545815532,3.2078,1799.0,1798.7,0.86874307]
[1680545815727,3.2078,1799.0,1798.5,0.86874307]
[1680545815728,1.105,1798.9,1798.5,0.86874307]
[1680545816040,1.105,1798.9,1798.5,4.07654307]
[1680545817237,1.0,1799.2,1798.8,1.107]
[1680545817533,1.0,1799.2,1798.5,4.07654307]
[1680545817534,4.3168,1798.9,1798.5,4.07654307]
[1680545817735,4.3168,1798.9,1798.5,0.86874307]
[1680545818035,4.3168,1798.9,1798.4,2.53905751]
[1680545819035,4.3168,1798.9,1798.5,4.07654307]
[1680545819735,4.3168,1798.9,1798.5,3.2078]
[1680545821733,4.3168,1799.1,1798.6,1.11]
[1680545822034,4.3168,1799.1,1798.7,4.3148]
[1680545822035,3.2078,1799.1,1798.7,4.3148]
[1680545822532,2.105,1799.2,1798.7,4.3148]
[1680545822731,1.105,1799.2,1798.7,4.3148]
[1680545822931,1.105,1799.2,1798.7,5.18354307]
[1680545823234,2.105,1799.2,1798.8,3.2078]
[1680545824230,1.105,1799.2,1798.8,3.2078]
[1680545826540,1.0180316,1799.1,1798.8,3.2078]
[1680545827734,1.0180316,1799.1,1798.9,1.111]
[1680545827937,1.0180316,1799.1,1799.0,3.2078]
[1680545828125,1.101,1799.4,1799.0,3.2078]
[1680545829933,3.2078,1799.2,1798.9,1.111]
[1680545830135,1.111,1799.1,1798.7,3.2078]
[1680545830438,1.109,1798.9,1798.5,4.07654307]
[1680545830938,1.109,1798.9,1798.4,2.54305751]
[1680545831233,1.109,1798.9,1798.4,1.97974307]
[1680545831234,3.2078,1798.8,1798.4,1.97974307]
[1680545833637,1.109,1798.9,1798.5,0.86874307]
[1680545834035,1.109,1798.9,1798.4,5.18754307]
[1680545834538,1.109,1798.9,1798.5,0.86874307]
[1680545835449,4.3168,1798.9,1798.5,0.86874307]
[1680545836132,1.109,1798.9,1798.5,0.86874307]
[1680545836337,5.87237305,1799.1,1798.6,1.107]
[1680545836737,3.2078,1798.9,1798.6,1.97574307]
[1680545837654,3.2078,1799.0,1798.6,1.97574307]
[1680545838045,1.111,1798.9,1798.6,0.86874307]
[1680545838843,2.111,1798.9,1798.5,0.86874307]
[1680545839040,3.2078,1798.8,1798.5,0.86874307]
[1680545840257,3.2078,1798.8,1798.6,0.86874307]
[1680545841435,1.111,1798.9,1798.6,0.86874307]
[1680545841653,0.90521995,1798.7,1798.6,0.86874307]
[1680545841844,1.111,1798.9,1798.6,0.86874307]
[1680545842540,3.2078,1799.0,1798.6,5.18754307]
[1680545842739,3.2078,1799.0,1798.7,0.86874307]
[1680545844648,2.24684156,1799.1,1798.7,0.86874307]
[1680545844847,0.58226851,1799.0,1798.7,0.86874307]
[1680545845343,3.79006851,1799.0,1798.7,0.86874307]
[1680545846153,1.111,1798.9,1798.7,0.86874307]
[1680545846338,1.111,1798.9,1798.7,1.44862879]
[1680545846542,1.111,1798.9,1798.7,0.57988572]
[1680545846744,1.111,1798.9,1798.8,0.57988572]
[1680545847638,3.79006851,1799.0,1798.8,0.57988572]
[1680545847950,3.2078,1799.0,1798.8,2.55262879]
[1680545848147,0.58226851,1799.1,1798.9,0.57988572]
[1680545850336,0.58226851,1799.2,1799.0,1.44862879]
[1680545850752,0.58226851,1799.2,1799.1,0.57988572]
[1680545851850,3.56548369,1799.3,1799.1,0.57988572]
[1680545852049,2.56548369,1799.3,1799.1,0.57988572]
[1680545852248,0.58226851,1799.3,1799.1,0.57988572]
[1680545852658,0.58226851,1799.3,1799.1,1.44862879]
[1680545852951,0.58226851,1799.3,1799.2,0.57988572]
[1680545853252,0.58226851,1799.3,1799.2,3.78768572]
[1680545853548,0.58226851,1799.3,1799.2,0.57988572]
[1680545853741,0.58226851,1799.3,1799.2,3.78768572]
[1680545853942,0.58226851,1799.4,1799.2,3.78768572]
[1680545854145,0.58226851,1799.4,1799.3,0.57988572]
[1680545854343,0.58226851,1799.4,1799.3,1.57988572]
[1680545854548,0.58226851,1799.4,1799.3,1.66948062]
[1680545854745,0.58226851,1799.5,1799.3,3.06933797]
[1680545854947,0.58226851,1799.6,1799.4,4.89435331]
[1680545855250,0.58226851,1799.6,1799.5,1.0]
[1680545855652,0.58226851,1799.6,1799.4,5.76309638]
[1680545855850,1.50138428,1799.7,1799.5,0.57955331]
[1680545856051,1.50138428,1799.7,1799.5,1.57955331]
[1680545856249,1.50138428,1799.7,1799.5,0.57955331]
[1680545856648,0.91911577,1799.7,1799.6,0.085237]
[1680545857842,0.91911577,1799.7,1799.5,0.57955331]
[1680545858048,0.91911577,1799.7,1799.4,5.76309638]
[1680545858850,0.91911577,1799.7,1799.4,4.89435331]
[1680545860451,0.91911577,1799.7,1799.4,1.107]
[1680545860961,0.91911577,1799.7,1799.4,4.3148]
[1680545861857,0.91911577,1799.7,1799.4,5.3148]
[1680545862061,0.91911577,1799.7,1799.5,1.111]
[1680545862250,0.91911577,1799.7,1799.6,4.3148]
[1680545862455,0.91911577,1799.7,1799.6,5.3148]
[1680545863059,0.04695343,1799.7,1799.6,5.3148]
[1680545863263,0.58226851,1800.1,1799.7,5.611]
[1680545863560,0.58226851,1800.3,1800.0,4.3188]
[1680545863761,0.58226851,1800.4,1800.2,4.3188]
[1680545864761,2.17465414,1800.5,1800.2,4.3188]
[1680545865657,1.59238563,1800.5,1800.2,4.3188]
[1680545865866,4.80018563,1800.5,1800.2,1.111]
[1680545866056,1.109,1800.3,1799.8,4.3118]
[1680545866256,3.2078,1800.0,1799.6,1.111]
[1680545866458,3.2078,1800.0,1799.7,40.8]
[1680545866655,1.0,1799.9,1799.7,40.8]
[1680545866859,3.2078,1800.0,1799.7,40.8]
[1680545871567,3.2078,1800.0,1799.8,0.12748617]
[1680545871767,1.11,1799.9,1799.8,0.12748617]
[1680545872267,2.22387572,1799.9,1799.4,1.65279724]
[1680545872560,3.2078,1799.8,1799.4,1.65279724]
[1680545872760,1.0,1799.7,1799.4,1.65279724]
[1680545874968,1.0,1799.7,1799.3,2.77398019]
[1680545875174,1.0,1799.7,1799.3,1.102]
[1680545875461,1.111,1799.6,1799.2,5.46593728]
[1680545875668,1.111,1799.6,1799.1,15.90274307]
[1680545875669,4.3188,1799.6,1799.1,15.034]
[1680545875872,1.11,1799.4,1799.0,3.2078]
[1680545876162,1.0,1799.3,1799.0,3.2078]
[1680545876570,1.0,1799.3,1798.9,2.25472737]
[1680545876763,4.3178,1799.4,1798.9,1.67517406]
[1680545877365,1.0,1799.3,1798.9,1.67517406]
[1680545877666,4.3178,1799.4,1798.9,1.67517406]
[1680545877866,3.51074948,1799.5,1799.1,1.111]
[1680545878060,1.0,1799.4,1799.1,1.111]
[1680545878458,0.30294948,1799.5,1799.2,3.2078]
[1680545880463,1.105,1799.4,1798.9,5.46252737]
[1680545880662,2.105,1799.4,1798.9,5.46252737]
[1680545880862,3.2078,1799.3,1798.9,2.25472737]
[1680545881263,3.2078,1799.3,1798.9,1.67517406]
[1680545883567,3.2078,1799.3,1798.9,5.46252737]
[1680545883968,3.51074948,1799.5,1799.1,1.106]
[1680545884472,0.30294948,1799.5,1799.1,4.3138]
[1680545885271,3.51074948,1799.5,1799.1,4.3138]
[1680545886071,2.106,1799.4,1799.1,3.2078]
[1680545886773,0.42230733,1799.3,1798.9,1.14072737]
[1680545887067,4.3178,1799.2,1798.8,0.57955331]
[1680545887476,4.3178,1799.2,1798.7,1.68155331]
[1680545887477,1.0,1799.1,1798.7,1.68155331]
[1680545887968,4.3178,1799.2,1798.7,1.68155331]
[1680545888166,4.3178,1799.2,1798.8,3.78735331]
[1680545888368,1.11,1799.2,1798.8,3.78735331]
[1680545888668,4.3178,1799.4,1799.0,3.2078]
[1680545888862,1.0,1799.5,1799.1,1.102]
[1680545889074,5.3138,1799.6,1799.1,1.102]
[1680545889871,4.3138,1799.6,1799.1,1.102]
[1680545890077,4.3138,1799.6,1799.1,4.3098]
[1680545890268,3.2078,1799.6,1799.3,1.102]
[1680545890669,3.2078,1799.7,1799.3,4.3098]
[1680545891070,2.68826851,1799.8,1799.3,4.3098]
[1680545891274,3.2078,1799.7,1799.3,4.3098]
[1680545892173,3.2078,1799.7,1799.4,1.102]
[1680545893179,0.58226851,1799.8,1799.4,1.102]
[1680545893877,1.0,1799.6,1799.4,1.102]
[1680545894272,4.2078,1799.6,1799.2,1.69055331]
[1680545895576,3.2078,1799.4,1799.2,1.69055331]
[1680545896185,3.2078,1799.4,1799.3,1.11]
[1680545896382,0.58226851,1799.7,1799.3,1.68955331]
[1680545896682,5.1101,1799.9,1799.6,4.3178]
[1680545896880,5.66228369,1800.0,1799.7,0.04256528]
[1680545897076,4.79006851,1800.0,1799.6,1.11]
[1680545897271,5.66228369,1800.0,1799.6,1.11]
[1680545897695,0.58226851,1799.9,1799.6,1.11]
[1680545897981,3.2078,1799.8,1799.6,1.11]
[1680545898180,3.2078,1799.8,1799.5,1.102]
[1680545899080,4.89506851,1799.8,1799.4,1.14259568]
[1680545899278,4.89506851,1799.8,1799.4,0.56304237]
[1680545899580,3.2078,1799.6,1799.3,1.68255331]
[1680545899788,3.2078,1799.6,1799.3,1.103]
[1680545899975,1.29528295,1799.5,1799.3,1.103]
[1680545900376,0.29528295,1799.5,1799.3,1.103]
[1680545900579,1.29528295,1799.5,1799.2,0.57955331]
[1680545900881,0.29528295,1799.5,1799.2,0.57955331]
[1680545901276,0.29528295,1799.5,1799.3,1.68155331]
[1680545901492,0.29528295,1799.5,1799.3,4.88935331]
[1680545901784,0.58226851,1799.8,1799.4,1.68255331]
[1680545901983,0.58226851,1799.8,1799.5,1.106]
[1680545902587,3.2078,1799.7,1799.5,1.106]
[1680545902981,0.58226851,1799.8,1799.5,1.106]
[1680545903476,0.56058561,1799.8,1799.5,4.3138]
[1680545903680,1.0,1800.1,1799.7,1.102]
[1680545903681,1.87221518,1800.1,1799.7,1.102]
[1680545903884,0.87221518,1800.1,1799.8,0.05492888]
[1680545904285,0.87221518,1800.1,1800.0,1.102]
[1680545904482,0.87221518,1800.2,1800.0,1.102]
[1680545904691,2.0839807,1800.3,1800.0,1.102]
[1680545904692,1.79111706,1800.3,1800.0,1.102]
[1680545905489,1.79111706,1800.3,1800.2,1.102]
[1680545905681,0.91890188,1800.3,1800.2,1.102]
[1680545906787,0.91890188,1800.3,1800.2,2.102]
[1680545908888,0.91890188,1800.3,1800.2,7.667]
[1680545909491,0.91890188,1800.3,1800.2,8.2357954]
[1680545916095,0.35510188,1800.3,1800.2,9.3467954]
[1680545916295,4.08001518,1801.1,1800.4,5.565]
[1680545916591,3.2078,1801.1,1801.0,1.103]
[1680545917490,3.2078,1801.3,1801.0,1.103]
[1680545917690,3.2078,1801.3,1801.1,1.103]
[1680545918694,1.0,1801.2,1801.0,1.102]
[1680545919090,3.2078,1801.3,1801.0,1.102]
[1680545922085,4.3138,1801.3,1800.9,0.55485573]
[1680545922285,1.106,1801.3,1800.8,1.103]
[1680545922490,4.2078,1801.2,1800.8,1.103]
[1680545922694,1.0,1801.1,1800.8,1.103]
[1680545923089,1.0,1801.1,1800.8,41.903]
[1680545923491,4.2078,1801.2,1800.8,41.903]
[1680545923897,1.0,1801.1,1800.8,41.903]
[1680545924095,3.2078,1801.0,1800.8,40.8]
[1680545924294,1.0,1800.9,1800.7,2.21155222]
[1680545924603,1.0,1800.9,1800.6,1.102]
[1680545924897,3.2078,1801.0,1800.6,41.902]
[1680545925297,3.2078,1800.8,1800.6,1.102]
[1680545928399,5.3138,1801.1,1800.6,1.102]
[1680545928699,4.3178,1800.9,1800.5,0.91095818]
[1680545928898,4.3178,1800.9,1800.4,41.906]
[1680545929199,3.2078,1800.7,1800.4,41.906]
[1680545931498,3.2078,1800.7,1800.5,0.53761886]
[1680545932497,1.0,1800.6,1800.5,0.53761886]
[1680545933104,3.2078,1800.7,1800.5,0.53761886]
[1680545933304,3.2078,1800.7,1800.5,0.21211886]
[1680545933305,4.3138,1800.7,1800.5,0.21211886]
[1680545933491,1.0,1800.6,1800.5,0.53761555]
[1680545933694,1.0,1800.6,1800.2,42.4707954]
[1680545933902,3.2078,1800.3,1800.2,42.4707954]
[1680545934399,3.2078,1800.3,1800.2,1.6707954]
[1680545936096,3.2078,1800.8,1800.2,4.8785954]
[1680545936303,20.92271518,1801.1,1800.7,1.103]
[1680545936605,4.08001518,1801.2,1800.7,1.103]
[1680545937100,3.2078,1801.0,1800.7,1.103]
[1680545938805,3.2078,1801.0,1800.8,1.0]
[1680545939008,3.2078,1801.2,1800.8,1.0]
[1680545939304,3.2078,1801.2,1800.7,2.103]
[1680545940495,3.2078,1801.2,1800.7,1.103]
[1680545940895,3.2078,1801.2,1800.8,0.40387535]
[1680545941105,4.2078,1801.2,1800.8,0.40387535]
[1680545941301,3.2078,1801.2,1800.8,0.40387535]
[1680545941505,1.87221518,1801.4,1800.8,0.40387535]
[1680545941506,3.2078,1801.4,1801.0,1.106]
[1680545942007,3.2078,1801.4,1801.1,1.102]
[1680545942901,4.08001518,1801.4,1801.1,1.102]
[1680545943108,3.2078,1801.4,1801.1,1.102]
[1680545944104,4.08001518,1801.4,1801.1,1.102]
[1680545944411,3.2078,1801.4,1801.1,1.102]
[1680545945516,0.87221518,1801.5,1801.1,1.102]
[1680545946209,0.87221518,1801.4,1801.1,1.102]
[1680545946411,0.87221518,1801.4,1801.2,0.68654301]
[1680545947414,0.87221518,1801.6,1801.3,1.102]
[1680545947607,0.87221518,1801.7,1801.5,1.11]
[1680545947808,0.87221518,1801.8,1801.5,1.11]
[1680545948015,0.87221518,1801.8,1801.6,3.2078]
[1680545948211,0.87221518,1801.8,1801.7,1.103]
[1680545948411,0.86979713,1801.8,1801.7,1.103]
[1680545949013,0.86979713,1801.9,1801.7,1.103]
[1680545949206,0.86979713,1802.0,1801.8,1.102]
[1680545949411,0.86979713,1802.0,1801.9,5.3138]
[1680545949616,0.86979713,1802.0,1801.9,2.106]
[1680545949913,0.86979713,1802.1,1801.9,4.3138]
[1680545950117,0.86979713,1802.1,1802.0,1.102]
[1680545950415,0.86979713,1802.1,1802.0,2.102]
[1680545950711,0.86979713,1802.2,1802.0,2.102]
[1680545950912,0.86979713,1802.3,1802.1,4.3178]
[1680545951117,0.86979713,1802.4,1802.2,1.106]
[1680545951312,0.86979713,1802.4,1802.3,3.2078]
[1680545951613,0.86979713,1802.5,1802.3,3.2078]
[1680545951817,0.86979713,1802.5,1802.2,1.106]
[1680545952012,0.86979713,1802.5,1802.4,1.111]
[1680545953009,1.86979713,1802.6,1802.4,1.111]
[1680545954218,1.86979713,1802.7,1802.4,1.111]
[1680545954416,0.86979713,1802.6,1802.4,1.111]
[1680545954621,1.86979713,1802.7,1802.4,1.111]
[1680545954815,0.86979713,1802.7,1802.4,1.111]
[1680545955718,4.07759713,1802.7,1802.4,1.111]
[1680545956020,1.0,1802.6,1802.4,1.111]
[1680545956610,5.07759713,1802.7,1802.4,1.111]
[1680545956817,1.0,1802.6,1802.4,1.111]
[1680545957723,3.2078,1802.5,1802.2,1.103]
[1680545958316,1.0,1802.4,1802.2,1.103]
[1680545958719,3.2078,1802.3,1802.2,1.103]
[1680545958916,3.2078,1802.3,1802.1,1.103]
[1680545959514,0.86979713,1802.9,1802.2,6.4208]
[1680545959710,1.45634852,1803.1,1802.8,1.103]
[1680545959711,0.86979713,1803.1,1802.8,1.103]
[1680545959912,5.60509713,1803.3,1803.0,1.106]
[1680545960115,5.0202,1803.4,1803.1,3.2078]
[1680545960116,5.88999713,1803.4,1803.1,3.2078]
[1680545960314,1.0,1803.3,1803.0,4.3138]
[1680545960723,1.0,1803.3,1803.1,0.83139112]
[1680545961126,1.105,1803.2,1803.1,0.83139112]
[1680545961317,1.105,1803.2,1802.7,3.2078]
[1680545961723,1.105,1803.2,1802.8,0.83369837]
[1680545961917,2.106,1803.3,1802.8,1.102]
[1680545962117,1.0,1803.3,1802.9,0.8329292]
[1680545962516,1.0,1803.3,1802.8,2.218]
[1680545963124,1.0,1803.3,1802.9,3.2078]
[1680545964926,1.0,1803.3,1802.8,2.218]
[1680545965128,1.0,1803.3,1802.9,3.2078]
[1680545965428,6.4238,1803.4,1802.9,3.2078]
[1680545966422,6.4238,1803.4,1802.8,2.218]
[1680545966622,6.4238,1803.4,1802.9,3.2078]
[1680545967631,3.2078,1803.8,1803.3,5.4218]
[1680545968422,10.0966,1803.9,1803.6,2.205]
[1680545968627,0.64980011,1804.0,1803.6,2.205]
[1680545969427,3.3078,1804.0,1803.6,2.205]
[1680545969620,1.0,1803.9,1803.6,2.205]
[1680545969828,0.1,1804.0,1803.8,2.218]
[1680545971426,0.1,1804.0,1803.9,0.82524222]
[1680545971830,0.1,1804.0,1803.8,2.218]
[1680545972031,0.1,1804.0,1803.9,0.82524222]
[1680545972426,1.0,1803.9,1803.4,5.4218]
[1680545972925,5.5188,1804.0,1803.5,0.00307377]
[1680545973134,3.3078,1804.0,1803.6,2.218]
[1680545973631,0.1,1804.0,1803.6,5.4258]
[1680545975634,0.002,1803.9,1803.6,5.4258]
[1680545975932,0.002,1803.9,1803.8,3.2078]
[1680545976336,0.002,1803.9,1803.5,2.214]
[1680545976529,0.002,1803.9,1803.4,1.0]
[1680545976530,0.002,1803.9,1803.8,2.205]
[1680545976931,0.002,1803.9,1803.8,3.205]
[1680545977332,0.002,1803.9,1803.8,2.205]
[1680545977736,0.002,1803.9,1803.8,3.205]
[1680545978236,0.002,1803.9,1803.8,2.205]
[1680545978434,0.002,1803.9,1803.8,3.205]
[1680545979237,2.29440833,1804.2,1803.9,1.0]
[1680545979442,2.29440833,1804.2,1804.1,5.4128]
[1680545981748,2.29440833,1804.2,1804.0,2.214]
[1680545982244,2.29440833,1804.2,1803.9,2.218]
[1680545982537,1.0,1804.1,1803.9,2.218]
[1680545983536,2.29440833,1804.2,1803.9,2.218]
[1680545983736,2.29440833,1804.2,1804.1,2.207]
[1680545988739,2.29440833,1804.2,1804.1,3.207]
[1680545989346,2.04880673,1804.2,1804.1,3.207]
[1680545990344,2.04880673,1804.2,1804.1,8.772]
[1680545990948,2.04880673,1804.2,1804.1,2.207]
[1680545994644,5.25660673,1804.2,1804.1,2.207]
[1680545995549,5.25660673,1804.2,1803.9,2.218]
[1680545995747,1.0,1804.1,1803.9,2.218]
[1680545996252,3.2078,1804.0,1803.8,2.77926705]
[1680545996463,3.2078,1804.0,1803.8,2.218]
[1680545996751,1.0,1803.9,1803.8,2.218]
[1680545996948,3.2078,1804.0,1803.8,2.218]
[1680545997253,3.2078,1804.0,1803.9,2.207]
[1680545999753,3.2078,1804.0,1803.8,2.198]
[1680546002149,3.2078,1804.0,1803.9,2.207]